bitfinex-derivatives/quotes_SOLF0:USTF0_20260211
["timestamp","ask_amount","ask_price","bid_price","bid_amount"]
[1770803132060,3.12464518,80.93,80.906,0.07801187]
[1770803133063,3.12464518,80.92,80.899,5.14092853]
[1770803133262,3.12464518,80.92,80.895,474.50366571]
[1770803133464,3.12464518,80.91,80.895,474.50366571]
[1770803133962,3.08120274,80.919,80.895,474.50366571]
[1770803134170,3.08120274,80.919,80.87,3.12464518]
[1770803134373,3.12464518,80.92,80.872,11.1346]
[1770803135162,3.12464518,80.92,80.873,3.84411866]
[1770803135563,11.1281,80.921,80.881,3.84411866]
[1770803139674,3.05557306,80.958,80.901,3.84411866]
[1770803139866,3.05557306,80.958,80.911,3.84411866]
[1770803144970,3.05557306,80.958,80.913,3.84411866]
[1770803145576,3.05557306,80.958,80.915,11.1288]
[1770803145878,3.05557306,80.958,80.916,3.84411866]
[1770803146076,3.12464518,80.95,80.916,3.84411866]
[1770803146978,3.05557306,80.958,80.916,3.84411866]
[1770803149987,0.07872393,80.945,80.916,3.84411866]
[1770803150987,3.10434853,80.945,80.898,3.97855107]
[1770803151486,3.0256246,80.945,80.898,3.97855107]
[1770803152385,3.12464518,80.94,80.898,3.97855107]
[1770803152680,3.0256246,80.945,80.9,3.97855107]
[1770803152991,3.0256246,80.945,80.901,3.97855107]
[1770803153481,14.13050618,80.944,80.905,3.97855107]
[1770803153681,3.00550618,80.943,80.905,3.97855107]
[1770803157587,3.12464518,80.95,80.905,3.97855107]
[1770803157988,2.97831115,80.949,80.905,3.97855107]
[1770803158893,2.97831115,80.949,80.907,3.97855107]
[1770803159288,3.03024917,80.939,80.898,11.1311]
[1770803159689,3.03024917,80.939,80.898,15.10965107]
[1770803159991,3.03024917,80.939,80.899,3.97855107]
[1770803160298,3.12786099,80.93,80.899,3.97855107]
[1770803162390,3.03024917,80.939,80.899,3.97855107]
[1770803162592,3.12786099,80.93,80.899,3.97855107]
[1770803162795,3.00432155,80.919,80.887,3.97855107]
[1770803165505,3.00056587,80.909,80.864,3.97855107]
[1770803165792,3.12786099,80.9,80.864,3.97855107]
[1770803166699,3.12786099,80.9,80.866,15.11415107]
[1770803166894,3.12786099,80.9,80.867,3.97855107]
[1770803169494,3.12786099,80.89,80.855,3.97855107]
[1770803169694,2.95498089,80.889,80.855,3.97855107]
[1770803169895,2.95498089,80.889,80.834,26.99422765]
[1770803170095,98.62,80.913,80.823,3.97855107]
[1770803170096,3.12786099,80.86,80.823,3.97855107]
[1770803170296,2.95498089,80.859,80.823,3.97855107]
[1770803170500,3.12786099,80.87,80.823,3.97855107]
[1770803170700,2.95498089,80.871,80.823,3.97855107]
[1770803171000,2.95126119,80.859,80.823,3.97855107]
[1770803171387,3.12786099,80.85,80.823,3.97855107]
[1770803171591,3.12786099,80.85,80.809,3.97855107]
[1770803171795,2.95126119,80.859,80.816,3.97855107]
[1770803172397,2.95126119,80.859,80.819,3.97855107]
[1770803172599,3.12786099,80.87,80.819,3.97855107]
[1770803172899,5.84216513,80.87,80.819,3.97855107]
[1770803173099,2.71430414,80.869,80.819,3.97855107]
[1770803173295,2.71430414,80.869,80.821,3.97855107]
[1770803174395,3.12786099,80.86,80.821,3.97855107]
[1770803175601,2.79166838,80.859,80.821,3.97855107]
[1770803175802,3.12786099,80.85,80.821,3.97855107]
[1770803176795,2.79166838,80.859,80.821,3.97855107]
[1770803177205,3.12786099,80.85,80.821,3.97855107]
[1770803177700,2.79166838,80.859,80.821,3.97855107]
[1770803179098,0.0781207,80.848,80.821,3.97855107]
[1770803179303,0.0781207,80.848,80.801,3.97855107]
[1770803180004,0.0781207,80.848,80.811,3.97855107]
[1770803180606,2.79166838,80.859,80.811,3.97855107]
[1770803182205,2.78763168,80.881,80.821,3.80996423]
[1770803182507,3.12786099,80.86,80.821,3.80996423]
[1770803183608,3.12786099,80.86,80.823,3.80996423]
[1770803184207,2.86560147,80.869,80.823,3.80996423]
[1770803184397,2.86560147,80.869,80.825,3.80996423]
[1770803184601,3.12786099,80.87,80.825,3.80996423]
[1770803185808,5.96833283,80.87,80.829,3.88935448]
[1770803186007,2.84047184,80.869,80.829,3.88935448]
[1770803188709,98.68,80.898,80.841,0.07814068]
[1770803188710,2.8791012,80.859,80.841,0.07814068]
[1770803188910,2.8791012,80.859,80.817,15.03165448]
[1770803188911,3.12786099,80.85,80.817,15.03165448]
[1770803189111,2.8791012,80.859,80.821,11.1418]
[1770803189309,2.8791012,80.859,80.778,22.2953]
[1770803189310,2.8791012,80.859,80.822,3.88935448]
[1770803190509,297.78597756,80.922,80.827,3.88935448]
[1770803190510,3.12786099,80.87,80.827,3.88935448]
[1770803191804,3.12786099,80.87,80.832,3.88935448]
[1770803194215,3.12786099,80.86,80.832,3.88935448]
[1770803194719,3.12786099,80.85,80.816,3.88935448]
[1770803195914,3.12786099,80.85,80.814,3.88935448]
[1770803196110,3.12786099,80.84,80.814,3.88935448]
[1770803196318,3.12786099,80.84,80.805,11.144]
[1770803196517,3.12786099,80.84,80.806,3.88935448]
[1770803197021,3.12786099,80.84,80.808,11.1435]
[1770803197221,3.12786099,80.84,80.809,3.88935448]
[1770803199524,0.07831767,80.833,80.809,3.88935448]
[1770803203233,2.97070252,80.833,80.777,3.88935448]
[1770803203527,3.12786099,80.8,80.777,3.88935448]
[1770803203716,3.12786099,80.8,80.751,3.88935448]
[1770803204330,3.12786099,80.81,80.761,3.88935448]
[1770803204830,2.89238485,80.799,80.761,3.88935448]
[1770803205827,2.89238485,80.799,80.74,3.12786099]
[1770803205828,3.12786099,80.79,80.75,3.88935448]
[1770803206131,2.89238485,80.799,80.75,3.88935448]
[1770803206831,2.89238485,80.799,80.754,3.88935448]
[1770803207031,3.12786099,80.79,80.754,3.88935448]
[1770803207229,5.85560656,80.81,80.765,3.88935448]
[1770803207926,3.12786099,80.82,80.775,3.88935448]
[1770803208125,3.12786099,80.81,80.775,3.88935448]
[1770803208526,3.12786099,80.8,80.761,3.88935448]
[1770803209134,2.70038975,80.799,80.761,3.88935448]
[1770803209331,3.12786099,80.79,80.761,3.88935448]
[1770803209827,3.12786099,80.79,80.741,3.88935448]
[1770803210431,3.12786099,80.76,80.729,3.77157771]
[1770803211026,3.12786099,80.77,80.729,3.77157771]
[1770803211226,3.12786099,80.76,80.712,3.77157771]
[1770803212129,2.6250722,80.769,80.725,11.155]
[1770803212435,3.12786099,80.77,80.726,3.77157771]
[1770803213335,3.12786099,80.76,80.726,3.77157771]
[1770803213535,3.12786099,80.77,80.726,3.77157771]
[1770803214329,5.6384215,80.76,80.713,3.77157771]
[1770803214531,2.51056051,80.759,80.713,3.77157771]
[1770803214937,3.12786099,80.79,80.741,3.77157771]
[1770803215238,2.60302567,80.789,80.741,3.77157771]
[1770803215439,5.73088666,80.78,80.741,3.77157771]
[1770803215644,2.60302567,80.779,80.741,3.77157771]
[1770803215843,3.12786099,80.77,80.721,3.77157771]
[1770803216047,2.60302567,80.769,80.721,3.77157771]
[1770803216438,3.12786099,80.76,80.721,3.77157771]
[1770803216838,3.12786099,80.76,80.727,11.1547]
[1770803217245,2.60302567,80.769,80.727,11.1547]
[1770803217444,2.60302567,80.769,80.721,3.77157771]
[1770803217837,2.81137084,80.759,80.711,473.1632722]
[1770803218549,3.12786099,80.75,80.711,473.1632722]
[1770803218845,3.14285704,80.75,80.712,11.1568]
[1770803219042,2.81137084,80.759,80.713,3.77157771]
[1770803219643,3.14285704,80.76,80.716,3.77157771]
[1770803219848,3.14285704,80.77,80.721,3.77157771]
[1770803220144,2.74042799,80.769,80.721,3.77157771]
[1770803220739,3.14285704,80.77,80.721,3.77157771]
[1770803220939,3.14285704,80.77,80.733,11.1539]
[1770803221146,2.71692391,80.794,80.751,3.77157771]
[1770803221339,11.45051816,80.868,80.711,733.9432722]
[1770803221340,2.71692391,80.807,80.761,3.77157771]
[1770803221542,3.14285704,80.8,80.761,3.77157771]
[1770803221851,5.85978095,80.8,80.761,3.77157771]
[1770803222845,3.14285704,80.81,80.761,3.77157771]
[1770803223048,2.70846496,80.815,80.761,3.77157771]
[1770803223248,3.14285704,80.81,80.761,3.77157771]
[1770803223848,3.14285704,80.81,80.762,3.77157771]
[1770803224346,3.14285704,80.81,80.718,37.05]
[1770803224347,2.70846496,80.779,80.732,3.77157771]
[1770803224551,98.8,80.803,80.751,3.77157771]
[1770803224955,2.52639579,80.802,80.751,3.77157771]
[1770803225252,3.14285704,80.81,80.761,3.77157771]
[1770803225851,0.07805512,80.794,80.77,6.91443475]
[1770803226051,2.52639579,80.817,80.771,3.77157771]
[1770803226250,103.9,80.822,80.771,3.77157771]
[1770803226651,13.74655091,80.82,80.771,3.77157771]
[1770803227448,2.60445091,80.82,80.78,11.1473]
[1770803227643,13.71007602,80.83,80.781,3.77157771]
[1770803227848,2.56947602,80.829,80.751,3.77157771]
[1770803228151,11.1423,80.818,80.767,11.1492]
[1770803228351,11.1423,80.818,80.768,3.77157771]
[1770803229058,11.1408,80.828,80.777,3.77157771]
[1770803229644,11.1408,80.828,80.779,3.77157771]
[1770803231059,11.1397,80.837,80.783,3.77157771]
[1770803231750,2.54836727,80.842,80.786,3.77157771]
[1770803232854,2.54836727,80.842,80.789,3.77157771]
[1770803233255,11.1373,80.854,80.789,3.77157771]
[1770803233454,11.1373,80.854,80.791,3.77157771]
[1770803233647,11.1373,80.854,80.799,3.77157771]
[1770803234851,8.40396349,80.88,80.77,35.40396349]
[1770803234852,2.52680525,80.849,80.805,3.77157771]
[1770803235052,2.52680525,80.849,80.771,3.77157771]
[1770803235248,2.52680525,80.849,80.786,11.1465]
[1770803235554,2.52680525,80.847,80.771,3.77157771]
[1770803235760,98.76,80.848,80.771,3.77157771]
[1770803235761,2.52680525,80.824,80.771,3.77157771]
[1770803236560,2.52680525,80.824,80.776,3.77157771]
[1770803237751,2.52680525,80.824,80.779,14.91907771]
[1770803237953,2.43781499,80.839,80.78,3.77157771]
[1770803239357,11.1376,80.852,80.803,3.77157771]
[1770803239662,2.45799229,80.851,80.803,3.77157771]
[1770803240758,2.51853847,80.848,80.804,11.1441]
[1770803242361,2.51853847,80.845,80.803,3.77157771]
[1770803243861,2.51853847,80.845,80.805,15.26155961]
[1770803245361,2.46606665,80.875,80.811,4.07690566]
[1770803246358,2.46606665,80.875,80.82,4.07690566]
[1770803247153,2.4657362,80.855,80.801,4.07690566]
[1770803248862,2.4657362,80.855,80.803,4.07690566]
[1770803249764,2.49890525,80.852,80.803,4.07690566]
[1770803250658,11.138,80.849,80.803,4.07690566]
[1770803251366,2.5005873,80.835,80.787,4.07690566]
[1770803251566,2.5005873,80.835,80.761,4.07690566]
[1770803252859,2.5033725,80.829,80.77,4.07690566]
[1770803253766,2.5033725,80.829,80.775,4.07690566]
[1770803254462,2.5033725,80.829,80.778,4.07690566]
[1770803255157,2.5033725,80.829,80.79,4.07690566]
[1770803255363,11.1392,80.84,80.79,4.07690566]
[1770803255959,11.1397,80.837,80.79,4.07690566]
[1770803256159,2.48633524,80.836,80.79,4.07690566]
[1770803256365,2.48633524,80.836,80.78,15.22430566]
[1770803256562,2.48633524,80.836,80.781,4.07690566]
[1770803257765,2.48633524,80.836,80.76,8.40396349]
[1770803257766,2.48633524,80.836,80.788,4.07690566]
[1770803258362,11.1383,80.847,80.789,11.1462]
[1770803258563,2.5447203,80.862,80.79,4.07690566]
[1770803259772,8.40396349,80.87,80.781,4.07690566]
[1770803259773,2.57048594,80.849,80.781,4.07690566]
[1770803260774,2.68528391,80.842,80.787,11.1464]
[1770803260977,2.68528391,80.842,80.781,4.07690566]
[1770803261380,2.68528391,80.829,80.781,4.07690566]
[1770803261573,2.68528391,80.829,80.751,4.07690566]
[1770803262771,2.70653187,80.825,80.772,4.07690566]
[1770803263882,2.70653187,80.825,80.779,15.22450566]
[1770803264086,2.70653187,80.825,80.78,4.07690566]
[1770803265677,2.70653187,80.825,80.783,4.07690566]
[1770803266381,11.1399,80.835,80.783,4.07690566]
[1770803267084,11.1406,80.83,80.785,4.07690566]
[1770803267674,11.1406,80.83,80.788,4.07690566]
[1770803267884,2.7294757,80.834,80.788,4.07690566]
[1770803268486,2.7294757,80.834,80.789,15.22310566]
[1770803268885,3.13662472,80.83,80.79,4.07690566]
[1770803273076,11.1407,80.829,80.79,4.07690566]
[1770803274388,13.89065012,80.829,80.79,4.07690566]
[1770803274584,2.74995012,80.828,80.79,4.07690566]
[1770803279593,11.141,80.827,80.79,4.07690566]
[1770803281694,11.1396,80.838,80.79,4.07690566]
[1770803282289,2.76432807,80.863,80.811,3.97284939]
[1770803282495,3.13689513,80.86,80.811,3.97284939]
[1770803282694,2.76432807,80.863,80.811,3.97284939]
[1770803283397,2.76432807,80.863,80.822,3.97284939]
[1770803284196,2.76438331,80.859,80.811,3.97284939]
[1770803284397,3.13689513,80.85,80.811,3.97284939]
[1770803285797,3.13689513,80.85,80.813,3.97284939]
[1770803286005,13.96023032,80.857,80.813,3.97284939]
[1770803286200,2.82323032,80.856,80.813,3.97284939]
[1770803286502,2.82323032,80.856,80.815,3.97284939]
[1770803290611,2.82323032,80.856,80.814,11.1427]
[1770803290612,3.13689513,80.84,80.803,15.11704939]
[1770803290911,3.13689513,80.84,80.804,3.97284939]
[1770803291411,2.83705931,80.849,80.808,3.97284939]
[1770803292005,5.97127331,80.86,80.817,3.97284939]
[1770803292610,2.83437818,80.859,80.817,3.97284939]
[1770803292811,13.97097818,80.859,80.817,3.97284939]
[1770803293010,2.79474745,80.858,80.817,3.97284939]
[1770803293212,3.13689513,80.85,80.817,3.97284939]
[1770803295705,2.7631737,80.877,80.831,3.97284939]
[1770803297818,2.7631737,80.877,80.832,3.97284939]
[1770803302822,3.13689513,80.85,80.809,3.79718924]
[1770803303016,3.13689513,80.84,80.809,3.79718924]
[1770803303828,2.92172392,80.849,80.809,3.79718924]
[1770803304823,2.65791285,80.848,80.809,3.79718924]
[1770803306425,3.13689513,80.85,80.81,4.02716978]
[1770803306624,14.27339513,80.86,80.811,4.02716978]
[1770803307124,14.27339513,80.86,80.812,4.02716978]
[1770803308035,16.94464152,80.86,80.812,4.02716978]
[1770803308830,16.94464152,80.86,80.814,15.16986978]
[1770803308831,2.67124639,80.859,80.814,15.16986978]
[1770803309422,2.67124639,80.859,80.815,4.02716978]
[1770803310530,5.83544881,80.84,80.803,15.17136978]
[1770803311431,3.13689513,80.83,80.793,11.1456]
[1770803311628,5.82265682,80.83,80.793,11.1456]
[1770803311833,2.68576169,80.819,80.771,4.02716978]
[1770803312025,3.13689513,80.81,80.771,4.02716978]
[1770803312831,2.71664966,80.809,80.758,4.02716978]
[1770803313026,2.71664966,80.799,80.758,4.02716978]
[1770803313835,3.13689513,80.81,80.758,4.02716978]
[1770803314723,3.13689513,80.81,80.762,4.02716978]
[1770803315126,2.64513497,80.809,80.762,4.02716978]
[1770803317033,3.13689513,80.8,80.762,4.02716978]
[1770803317732,3.13689513,80.8,80.764,11.1495]
[1770803317929,2.64513497,80.809,80.764,11.1495]
[1770803318330,2.64215221,80.789,80.746,4.02716978]
[1770803319630,2.64215221,80.789,80.749,11.1517]
[1770803319831,2.64215221,80.789,80.746,4.02716978]
[1770803319832,3.13689513,80.78,80.746,4.02716978]
[1770803320234,2.64215221,80.789,80.746,4.02716978]
[1770803321530,3.13689513,80.8,80.747,4.02716978]
[1770803322532,5.7513165,80.8,80.747,4.02716978]
[1770803322737,5.7513165,80.8,80.753,4.02716978]
[1770803323536,5.7513165,80.8,80.757,4.02716978]
[1770803324741,5.7513165,80.8,80.759,4.02716978]
[1770803331544,2.63728584,80.799,80.759,4.02716978]
[1770803336339,3.13689513,80.8,80.766,3.85617296]
[1770803337744,3.13689513,80.8,80.767,11.1492]
[1770803338544,2.64523307,80.799,80.759,11.1503]
[1770803340248,3.13942373,80.78,80.754,3.85617296]
[1770803340841,3.13942373,80.78,80.742,3.85617296]
[1770803341544,3.13942373,80.77,80.724,470.23544955]
[1770803341750,22.2838,80.821,80.725,3.85617296]
[1770803341751,3.13942373,80.76,80.725,3.85617296]
[1770803341952,2.63561403,80.769,80.725,3.85617296]
[1770803342844,2.63561403,80.769,80.731,11.1542]
[1770803345044,3.14149187,80.76,80.725,3.85617296]
[1770803345948,2.61329635,80.754,80.724,470.23544955]
[1770803346650,2.61329635,80.754,80.713,3.85617296]
[1770803347646,11.151,80.755,80.672,37.14]
[1770803347647,3.78126224,80.787,80.731,3.85617296]
[1770803348157,3.78126224,80.787,80.735,3.85617296]
[1770803348354,3.14149187,80.78,80.735,3.85617296]
[1770803348849,3.78126224,80.779,80.735,3.85617296]
[1770803349754,3.78126224,80.779,80.737,3.85617296]
[1770803352044,3.78126224,80.769,80.721,3.85617296]
[1770803352353,3.78126224,80.759,80.701,3.85617296]
[1770803352852,11.1507,80.757,80.701,15.01457296]
[1770803353156,3.14149187,80.74,80.702,3.85617296]
[1770803354954,3.14149187,80.74,80.65,23.01567658]
[1770803354955,3.14149187,80.73,80.689,3.85617296]
[1770803355155,3.78126224,80.739,80.689,3.85617296]
[1770803357659,11.1533,80.738,80.689,3.85617296]
[1770803357864,14.93456224,80.738,80.689,3.85617296]
[1770803358059,3.78126224,80.737,80.689,3.85617296]
[1770803358465,3.14149187,80.73,80.689,3.85617296]
[1770803359053,3.78126224,80.737,80.689,3.85617296]
[1770803359454,11.1537,80.735,80.689,3.85617296]
[1770803359762,3.14149187,80.73,80.689,3.85617296]
[1770803359962,14.93496224,80.735,80.689,3.85617296]
[1770803360464,3.7301824,80.747,80.697,3.77320513]
[1770803361059,3.14149187,80.74,80.7,3.77320513]
[1770803362953,11.1525,80.744,80.7,3.77320513]
[1770803363159,3.14149187,80.74,80.7,3.77320513]
[1770803363464,6.87167427,80.74,80.7,3.77320513]
[1770803365166,4.09839424,80.737,80.691,3.80894092]
[1770803365757,11.1538,80.734,80.691,3.80894092]
[1770803365961,3.14149187,80.73,80.691,3.80894092]
[1770803366764,4.09839424,80.733,80.691,3.80894092]
[1770803366970,3.14149187,80.73,80.691,3.80894092]
[1770803367468,3.14149187,80.73,80.704,0.07806261]
[1770803368365,98.84,80.754,80.68,3.14149187]
[1770803368366,4.09839424,80.717,80.68,3.80894092]
[1770803368765,11.156,80.718,80.68,3.80894092]
[1770803370063,15.25339424,80.726,80.68,3.80894092]
[1770803370263,4.09839424,80.725,80.68,3.80894092]
[1770803371070,15.25449424,80.718,80.68,3.80894092]
[1770803371271,4.09839424,80.717,80.68,3.80894092]
[1770803372769,11.1567,80.713,80.68,3.80894092]
[1770803372978,4.09839424,80.734,80.691,3.80894092]
[1770803373164,98.86,80.761,80.691,3.80894092]
[1770803373165,4.09839424,80.729,80.691,3.80894092]
[1770803373372,4.09839424,80.729,80.671,3.80894092]
[1770803374463,4.09839424,80.729,80.683,3.80894092]
[1770803375672,4.09839424,80.719,80.669,3.80894092]
[1770803375869,3.14149187,80.75,80.691,3.80894092]
[1770803376069,4.09839424,80.749,80.701,3.80894092]
[1770803376264,4.09839424,80.749,80.71,3.14149187]
[1770803376468,3.14149187,80.76,80.71,3.14149187]
[1770803376469,4.09839424,80.769,80.711,3.80894092]
[1770803377472,11.1505,80.759,80.711,3.80894092]
[1770803377675,15.24889424,80.759,80.711,3.80894092]
[1770803378065,4.09839424,80.749,80.701,11.1583]
[1770803378573,4.09839424,80.749,80.702,3.80894092]
[1770803378975,4.09839424,80.739,80.702,3.80894092]
[1770803379179,4.09839424,80.739,80.69,3.80894092]
[1770803379879,0.07869326,80.723,80.69,3.80894092]
[1770803381175,0.07869326,80.723,80.683,11.1608]
[1770803381878,3.14149187,80.72,80.677,3.80894092]
[1770803382176,0.07869326,80.723,80.677,3.80894092]
[1770803382478,11.1551,80.725,80.677,3.80894092]
[1770803382678,4.09839424,80.724,80.677,3.80894092]
[1770803383082,4.09839424,80.722,80.677,3.80894092]
[1770803383274,3.14149187,80.72,80.677,3.80894092]
[1770803383479,4.09839424,80.709,80.664,3.80894092]
[1770803383872,4.09839424,80.709,80.666,11.1632]
[1770803384069,4.09839424,80.709,80.667,3.80894092]
[1770803384471,4.09839424,80.709,80.651,3.80894092]
[1770803384776,4.09839424,80.709,80.65,3.14149187]
[1770803384777,4.09839424,80.709,80.659,3.80894092]
[1770803384979,4.09839424,80.709,80.661,3.80894092]
[1770803386286,4.09839424,80.727,80.671,3.80894092]
[1770803386784,4.09839424,80.727,80.681,3.80894092]
[1770803387286,4.09839424,80.719,80.681,3.80894092]
[1770803388683,11.1565,80.715,80.681,3.80894092]
[1770803389384,4.09839424,80.719,80.681,3.80894092]
[1770803390683,4.09267878,80.714,80.67,3.14149187]
[1770803390889,4.09267878,80.714,80.67,7.04458775]
[1770803391281,4.09267878,80.714,80.67,3.90309588]
[1770803391585,0.07817446,80.7,80.67,3.90309588]
[1770803391787,0.07817446,80.7,80.66,3.14149187]
[1770803392087,0.07817446,80.7,80.661,3.90309588]
[1770803392590,4.09267878,80.727,80.681,3.90309588]
[1770803392979,7.23417065,80.72,80.681,3.90309588]
[1770803393292,4.09267878,80.719,80.681,3.90309588]
[1770803393886,11.1561,80.718,80.681,3.90309588]
[1770803394082,4.09267878,80.717,80.67,14.30399187]
[1770803394790,4.09267878,80.717,80.67,18.20708775]
[1770803395093,4.09267878,80.717,80.671,3.90309588]
[1770803395696,11.1565,80.715,80.671,3.90309588]
[1770803396592,11.1565,80.715,80.685,0.07832946]
[1770803397792,98.86,80.737,80.685,3.98142534]
[1770803397793,11.1552,80.725,80.685,3.98142534]
[1770803398494,4.09267878,80.743,80.701,3.90309588]
[1770803399898,11.1528,80.742,80.701,15.06149588]
[1770803400394,3.14149187,80.75,80.707,3.90309588]
[1770803400582,4.09267878,80.758,80.711,3.90309588]
[1770803400784,3.14149187,80.77,80.721,3.90309588]
[1770803400996,4.09267878,80.769,80.721,3.90309588]
[1770803401695,15.24167878,80.769,80.721,3.90309588]
[1770803402000,4.09267878,80.785,80.731,3.90309588]
[1770803402991,11.1479,80.777,80.732,3.90309588]
[1770803403189,4.09267878,80.811,80.761,3.90309588]
[1770803403389,3.14043447,80.81,80.761,3.90309588]
[1770803403591,3.14043447,80.8,80.761,3.90309588]
[1770803403795,4.09267878,80.799,80.75,3.14043447]
[1770803404101,4.09267878,80.799,80.751,3.90309588]
[1770803404899,4.09267878,80.797,80.751,3.90309588]
[1770803405195,4.09267878,80.797,80.767,0.07810419]
[1770803406191,102.95267878,80.81,80.767,3.98120007]
[1770803406399,4.09267878,80.81,80.767,3.98120007]
[1770803406598,4.09267878,80.81,80.767,0.07810419]
[1770803407795,4.09267878,80.81,80.717,98.84]
[1770803407796,4.09267878,80.797,80.736,3.90309588]
[1770803409301,4.09267878,80.784,80.736,3.90309588]
[1770803410091,98.84,80.809,80.716,11.1562]
[1770803410092,4.09267878,80.778,80.716,11.1562]
[1770803410296,4.09267878,80.776,80.717,3.90309588]
[1770803410801,8.40981956,80.81,80.7,3.90309588]
[1770803410802,4.09267878,80.757,80.7,3.90309588]
[1770803411398,11.1523,80.745,80.7,3.90309588]
[1770803411602,4.09267878,80.744,80.7,3.90309588]
[1770803413105,98.82,80.765,80.7,3.90309588]
[1770803413403,4.09267878,80.82,80.726,3.90309588]
[1770803413603,196.00730164,80.883,80.715,173.5443]
[1770803413604,4.09267878,80.881,80.773,3.90309588]
[1770803413800,4.09267878,80.869,80.773,3.90309588]
[1770803414001,4.09267878,80.869,80.781,3.90309588]
[1770803414210,4.09267878,80.869,80.806,3.90309588]
[1770803415306,4.09267878,80.869,80.782,3.90309588]
[1770803415609,4.09267878,80.852,80.788,3.90309588]
[1770803415797,4.09267878,80.869,80.788,3.90309588]
[1770803416202,15.22797878,80.869,80.811,11.1431]
[1770803416394,15.22797878,80.869,80.811,15.04619588]
[1770803416598,15.22797878,80.869,80.812,3.90309588]
[1770803417008,4.09267878,80.864,80.812,3.90309588]
[1770803417207,4.09267878,80.864,80.799,11.1448]
[1770803417807,4.09267878,80.86,80.795,3.90309588]
[1770803418308,4.09267878,80.856,80.795,3.90309588]
[1770803419110,4.09267878,80.85,80.795,3.90309588]
[1770803419308,4.09267878,80.849,80.779,3.90309588]
[1770803419812,4.09267878,80.842,80.779,3.90309588]
[1770803420908,4.09267878,80.842,80.781,3.96449983]
[1770803422105,4.00342468,80.83,80.781,3.96449983]
[1770803422523,12.41324424,80.83,80.781,3.96449983]
[1770803422814,4.00342468,80.83,80.781,3.96449983]
[1770803423116,4.00342468,80.848,80.781,3.96449983]
[1770803424020,4.00342468,80.818,80.755,3.96449983]
[1770803424704,11.1429,80.813,80.755,3.96449983]
[1770803424908,4.00342468,80.809,80.732,3.96449983]
[1770803426116,4.00342468,80.809,80.734,3.85445819]
[1770803426719,11.1451,80.798,80.734,3.85445819]
[1770803427717,11.1451,80.798,80.739,3.85445819]
[1770803428330,0.07836535,80.777,80.739,3.85445819]
[1770803428921,0.07836535,80.777,80.683,37.14]
[1770803428922,3.81977021,80.777,80.72,3.85445819]
[1770803429520,3.74140486,80.777,80.72,3.85445819]
[1770803429720,98.78,80.795,80.72,3.85445819]
[1770803429721,3.74140486,80.775,80.72,3.85445819]
[1770803430416,3.74140486,80.773,80.72,3.85445819]
[1770803431625,8.40981956,80.78,80.706,11.1576]
[1770803431626,3.74140486,80.757,80.706,3.85445819]
[1770803431832,3.74140486,80.757,80.694,3.85445819]
[1770803432728,11.1509,80.755,80.698,3.85445819]
[1770803433230,11.1524,80.745,80.698,3.85445819]
[1770803434631,14.89380486,80.745,80.698,3.85445819]
[1770803435333,11.1531,80.74,80.698,3.85445819]
[1770803436931,3.74140486,80.744,80.698,3.85445819]
[1770803440731,3.74140486,80.728,80.676,3.85445819]
[1770803441736,3.74140486,80.728,80.679,3.85445819]
[1770803442333,3.74140486,80.728,80.682,3.85445819]
[1770803443339,11.1533,80.738,80.684,3.85445819]
[1770803443933,11.1539,80.733,80.684,3.85445819]
[1770803444139,3.74140486,80.732,80.684,3.85445819]
[1770803445639,11.1546,80.729,80.684,3.85445819]
[1770803446540,3.74140486,80.726,80.672,11.1623]
[1770803446937,3.74140486,80.726,80.672,15.01675819]
[1770803447237,3.74140486,80.714,80.672,3.85445819]
[1770803448737,11.1572,80.71,80.663,11.1636]
[1770803449035,3.74140486,80.731,80.657,3.85445819]
[1770803450740,4.0496497,80.726,80.671,15.27524697]
[1770803451131,98.86,80.744,80.657,4.11274697]
[1770803451132,4.0496497,80.719,80.657,4.11274697]
[1770803452733,4.0496497,80.715,80.663,11.1636]
[1770803453441,4.0496497,80.713,80.657,4.11274697]
[1770803454842,11.1582,80.702,80.657,4.11274697]
[1770803456243,4.0496497,80.698,80.657,4.11274697]
[1770803460232,4.0496497,80.698,80.619,37.14]
[1770803460233,4.0496497,80.683,80.624,4.11274697]
[1770803460436,4.0496497,80.683,80.596,4.11274697]
[1770803460645,4.0496497,80.669,80.599,4.11274697]
[1770803460846,11.1644,80.658,80.609,4.11274697]
[1770803461044,4.0496497,80.658,80.609,4.11274697]
[1770803462042,173.5508,80.713,80.583,159.06]
[1770803462043,4.0496497,80.684,80.623,4.11274697]
[1770803462246,4.0496497,80.698,80.623,4.11274697]
[1770803463143,173.4627,80.754,80.615,37.14]
[1770803463144,4.0496497,80.717,80.646,4.11274697]
[1770803463938,11.1563,80.716,80.663,4.11274697]
[1770803464843,4.0496497,80.711,80.666,4.11274697]
[1770803465044,4.0496497,80.709,80.643,4.11274697]
[1770803465447,11.1574,80.708,80.656,4.11274697]
[1770803466049,4.0496497,80.709,80.662,4.11274697]
[1770803466742,4.0496497,80.709,80.664,4.11274697]
[1770803468848,4.0496497,80.707,80.654,11.1647]